[Event "Early-Titled-Tuesday-Blitz-May-14-2024"]
[Site "Chess.com"]
[Date "2024.05.14"]
[Round "1"]
[White "grozdanovic_a"]
[Black "NovoselovRoman"]
[Result "0-1"]
[WhiteElo "2321"]
[BlackElo "2643"]
[TimeControl "180+1"]
[EndTime "8:07:51 PDT"]
[Termination "NovoselovRoman won by resignation"]

1. d4 {[%clk 0:03:00.9]} 1... d5 {[%clk 0:02:50.1]} 2. Nf3 {[%clk 0:03:01.2]}
2... Nf6 {[%clk 0:02:49.8]} 3. g3 {[%clk 0:03:01.7]} 3... e6 {[%clk 0:02:50]} 4.
Bg2 {[%clk 0:03:02.3]} 4... c5 {[%clk 0:02:48.8]} 5. c3 {[%clk 0:03:01.1]} 5...
Nc6 {[%clk 0:02:48.7]} 6. O-O {[%clk 0:03:01.6]} 6... Be7 {[%clk 0:02:43.7]} 7.
Re1 {[%clk 0:03:02]} 7... O-O {[%clk 0:02:44.2]} 8. Nbd2 {[%clk 0:02:59.1]} 8...
cxd4 {[%clk 0:02:40.3]} 9. cxd4 {[%clk 0:02:58.7]} 9... Qb6 {[%clk 0:02:41]} 10.
Qb3 {[%clk 0:02:57.9]} 10... Nxd4 {[%clk 0:02:35.9]} 11. Qxb6 {[%clk 0:02:40.5]}
11... Nxf3+ {[%clk 0:02:35.1]} 12. Nxf3 {[%clk 0:02:41.2]} 12... axb6 {[%clk
0:02:35.8]} 13. Bf4 {[%clk 0:02:35.1]} 13... Bd7 {[%clk 0:02:27.4]} 14. Rec1
{[%clk 0:02:32.1]} 14... Rfc8 {[%clk 0:02:22.3]} 15. a3 {[%clk 0:02:32]} 15...
Ne4 {[%clk 0:02:07.9]} 16. Ne5 {[%clk 0:02:28.9]} 16... Bb5 {[%clk 0:02:08.5]}
17. Kf1 {[%clk 0:02:11.5]} 17... f6 {[%clk 0:01:56.2]} 18. Nd3 {[%clk
0:02:06.6]} 18... Nc5 {[%clk 0:01:53.6]} 19. Nxc5 {[%clk 0:02:00]} 19... bxc5
{[%clk 0:01:54.5]} 20. h4 {[%clk 0:01:58]} 20... Kf7 {[%clk 0:01:49.5]} 21. Bd2
{[%clk 0:01:57.5]} 21... Bc6 {[%clk 0:01:30]} 22. f4 {[%clk 0:01:47.4]} 22...
Ra4 {[%clk 0:01:20.8]} 23. e3 {[%clk 0:01:40.4]} 23... Rca8 {[%clk 0:01:11.7]}
24. Rab1 {[%clk 0:01:30.9]} 24... Bb5+ {[%clk 0:01:07.3]} 25. Kf2 {[%clk
0:01:30.6]} 25... Bd3 {[%clk 0:01:08.2]} 26. Ra1 {[%clk 0:01:30.3]} 26... b5
{[%clk 0:01:08.8]} 27. f5 {[%clk 0:01:27.1]} 27... Bxf5 {[%clk 0:01:01]} 28. Bf3
{[%clk 0:01:16.5]} 28... b4 {[%clk 0:00:34.9]} 29. Bd1 {[%clk 0:01:16.5]} 29...
R4a7 {[%clk 0:00:34.2]} 30. a4 {[%clk 0:01:13.1]} 30... c4 {[%clk 0:00:34.9]}
31. b3 {[%clk 0:01:08.9]} 31... c3 {[%clk 0:00:34.8]} 32. Be1 {[%clk 0:01:08.9]}
32... Bc5 {[%clk 0:00:34]} 33. g4 {[%clk 0:01:07.9]} 33... Be4 {[%clk
0:00:33.7]} 34. Bf3 {[%clk 0:01:06.2]} 34... Bxf3 {[%clk 0:00:32.6]} 35. Kxf3
{[%clk 0:01:07.1]} 35... e5 {[%clk 0:00:33.2]} 36. Bg3 {[%clk 0:01:02.5]} 36...
Rd7 {[%clk 0:00:27.7]} 37. g5 {[%clk 0:00:59.1]} 37... d4 {[%clk 0:00:23.6]} 38.
gxf6 {[%clk 0:00:57.8]} 38... gxf6 {[%clk 0:00:23.6]} 39. Rd1 {[%clk 0:00:52]}
39... d3 {[%clk 0:00:22.2]} 40. Ke4 {[%clk 0:00:41.9]} 40... Ke6 {[%clk
0:00:21.4]} 41. Ra2 {[%clk 0:00:34.7]} 41... Rg8 {[%clk 0:00:19.1]} 42. Bh2
{[%clk 0:00:11.1]} 42... f5+ {[%clk 0:00:18.8]} 43. Kf3 {[%clk 0:00:11.3]} 43...
e4+ {[%clk 0:00:19.4]} 44. Kf2 {[%clk 0:00:10.4]} 44... c2 {[%clk 0:00:20]} 45.
Rc1 {[%clk 0:00:08.8]} 45... d2 {[%clk 0:00:17.8]} 46. Raxc2 {[%clk 0:00:07.8]}
46... dxc1=Q {[%clk 0:00:17.1]} 47. Rxc1 {[%clk 0:00:08.5]} 47... Rd5 {[%clk
0:00:16.5]} 48. a5 {[%clk 0:00:06.2]} 48... Rc8 {[%clk 0:00:16.9]} 49. Ke2
{[%clk 0:00:05.3]} 49... Rd3 {[%clk 0:00:16.8]} 50. a6 {[%clk 0:00:05.4]} 50...
Rxe3+ {[%clk 0:00:17.2]} 51. Kd2 {[%clk 0:00:06.1]} 51... Rc3 {[%clk 0:00:17.6]}
52. Rxc3 {[%clk 0:00:05.9]} 52... bxc3+ {[%clk 0:00:18.5]} 53. Kxc3 {[%clk
0:00:06.7]} 53... Bg1+ {[%clk 0:00:18.8]} 0-1

[Event "Early-Titled-Tuesday-Blitz-May-14-2024"]
[Site "Chess.com"]
[Date "2024.05.14"]
[Round "1"]
[White "Fradi82"]
[Black "Ural_bogatyr"]
[Result "1-0"]
[WhiteElo "2198"]
[BlackElo "2561"]
[TimeControl "180+1"]
[EndTime "8:07:51 PDT"]
[Termination "Fradi82 won by resignation"]

1. e4 {[%clk 0:03:00.9]} 1... e5 {[%clk 0:02:58.7]} 2. Nf3 {[%clk 0:03:00.2]}
2... Nc6 {[%clk 0:02:57.9]} 3. d4 {[%clk 0:03:00.6]} 3... exd4 {[%clk
0:02:51.3]} 4. Bc4 {[%clk 0:03:00]} 4... Bc5 {[%clk 0:02:49.5]} 5. Ng5 {[%clk
0:02:57.9]} 5... Nh6 {[%clk 0:02:48.9]} 6. Nxf7 {[%clk 0:02:56.7]} 6... Nxf7
{[%clk 0:02:49.8]} 7. Bxf7+ {[%clk 0:02:57.1]} 7... Kxf7 {[%clk 0:02:50.7]} 8.
Qh5+ {[%clk 0:02:57.4]} 8... g6 {[%clk 0:02:46.4]} 9. Qxc5 {[%clk 0:02:57.7]}
9... d5 {[%clk 0:02:43.6]} 10. O-O {[%clk 0:02:55.9]} 10... dxe4 {[%clk
0:02:36.6]} 11. c3 {[%clk 0:02:55.3]} 11... Qd6 {[%clk 0:02:34.6]} 12. Qg5
{[%clk 0:02:26.9]} 12... h6 {[%clk 0:02:03.8]} 13. Qh4 {[%clk 0:02:22.2]} 13...
Bf5 {[%clk 0:01:59.6]} 14. Bf4 {[%clk 0:02:11.7]} 14... g5 {[%clk 0:01:47.9]}
15. Bxd6 {[%clk 0:02:10.1]} 15... gxh4 {[%clk 0:01:44.2]} 16. Bxc7 {[%clk
0:02:10.1]} 16... Rhg8 {[%clk 0:01:43.6]} 17. g3 {[%clk 0:01:44.7]} 17... dxc3
{[%clk 0:01:20.9]} 18. bxc3 {[%clk 0:01:36.2]} 18... Rac8 {[%clk 0:01:13.6]} 19.
Bf4 {[%clk 0:01:35.9]} 19... h5 {[%clk 0:00:56.1]} 20. Na3 {[%clk 0:01:13.8]}
20... Rg4 {[%clk 0:00:42.1]} 21. Nc4 {[%clk 0:01:03.6]} 21... Rcg8 {[%clk
0:00:32.5]} 22. Nd6+ {[%clk 0:00:41.9]} 22... Ke6 {[%clk 0:00:30.8]} 23. Nxf5
{[%clk 0:00:41.4]} 23... Kxf5 {[%clk 0:00:29.8]} 24. Kh1 {[%clk 0:00:37.3]}
24... Rd8 {[%clk 0:00:17]} 25. Rad1 {[%clk 0:00:34.5]} 25... Rgg8 {[%clk
0:00:16.5]} 26. Bc7 {[%clk 0:00:29.3]} 26... Rxd1 {[%clk 0:00:11.8]} 27. Rxd1
{[%clk 0:00:30.2]} 27... Rg7 {[%clk 0:00:11.9]} 28. Bf4 {[%clk 0:00:27.6]} 28...
h3 {[%clk 0:00:11.3]} 29. Rd5+ {[%clk 0:00:26.8]} 29... Kg4 {[%clk 0:00:11.1]}
30. Kg1 {[%clk 0:00:24.9]} 30... Kf3 {[%clk 0:00:03.4]} 31. Kf1 {[%clk
0:00:20.5]} 31... Ne7 {[%clk 0:00:01.6]} 32. Rd7 {[%clk 0:00:19.9]} 32... Nf5
{[%clk 0:00:01.8]} 33. Rd5 {[%clk 0:00:14.2]} 33... Rf7 {[%clk 0:00:01.7]} 34.
Ke1 {[%clk 0:00:14]} 34... Ng7 {[%clk 0:00:01.6]} 35. Rg5 {[%clk 0:00:12.2]}
35... Ne6 {[%clk 0:00:01.4]} 36. Rxh5 {[%clk 0:00:11.1]} 36... Nxf4 {[%clk
0:00:01.1]} 37. gxf4 {[%clk 0:00:11.6]} 37... Kg2 {[%clk 0:00:02]} 38. f5 {[%clk
0:00:10.8]} 38... Kxh2 {[%clk 0:00:02.2]} 39. Kf1 {[%clk 0:00:11.3]} 39... Rg7
{[%clk 0:00:01.9]} 40. f6 {[%clk 0:00:11]} 40... Rg1+ {[%clk 0:00:02.4]} 41. Ke2
{[%clk 0:00:11.5]} 41... Rg6 {[%clk 0:00:02.8]} 42. Rf5 {[%clk 0:00:11.4]} 42...
Rg8 {[%clk 0:00:02.8]} 43. f7 {[%clk 0:00:11.7]} 43... Rf8 {[%clk 0:00:03.1]}
44. Ke3 {[%clk 0:00:11.4]} 44... Kg2 {[%clk 0:00:02.9]} 45. Rg5+ {[%clk
0:00:11.7]} 45... Kf1 {[%clk 0:00:02.4]} 46. Rh5 {[%clk 0:00:11.8]} 46... Rxf7
{[%clk 0:00:02.2]} 47. Rxh3 {[%clk 0:00:12.2]} 47... Rf3+ {[%clk 0:00:02.1]} 48.
Rxf3 {[%clk 0:00:12]} 48... exf3 {[%clk 0:00:02.4]} 49. Kxf3 {[%clk 0:00:12.9]}
1-0

[Event "Early-Titled-Tuesday-Blitz-May-14-2024"]
[Site "Chess.com"]
[Date "2024.05.14"]
[Round "1"]
[White "Incognizance"]
[Black "VacheH009"]
[Result "0-1"]
[WhiteElo "1982"]
[BlackElo "2555"]
[TimeControl "180+1"]
[EndTime "8:07:55 PDT"]
[Termination "VacheH009 won by resignation"]

1. d4 {[%clk 0:03:00.9]} 1... Nf6 {[%clk 0:02:57.6]} 2. c4 {[%clk 0:03:01.1]}
2... e6 {[%clk 0:02:55.1]} 3. Nf3 {[%clk 0:03:01]} 3... b6 {[%clk 0:02:52.4]} 4.
Nc3 {[%clk 0:03:00.7]} 4... Bb4 {[%clk 0:02:51.1]} 5. g3 {[%clk 0:02:59.9]} 5...
Bb7 {[%clk 0:02:50.9]} 6. Bg2 {[%clk 0:03:00]} 6... Bxc3+ {[%clk 0:02:48]} 7.
bxc3 {[%clk 0:03:00]} 7... O-O {[%clk 0:02:48.9]} 8. Bg5 {[%clk 0:02:58.4]} 8...
h6 {[%clk 0:02:45.5]} 9. Bxf6 {[%clk 0:02:57.9]} 9... Qxf6 {[%clk 0:02:46.4]}
10. O-O {[%clk 0:02:58]} 10... d6 {[%clk 0:02:41]} 11. Nd2 {[%clk 0:02:51.5]}
11... Bxg2 {[%clk 0:02:37.1]} 12. Kxg2 {[%clk 0:02:52.4]} 12... Nd7 {[%clk
0:02:33.2]} 13. e4 {[%clk 0:02:49.5]} 13... c5 {[%clk 0:02:30.4]} 14. Qf3 {[%clk
0:02:41.4]} 14... cxd4 {[%clk 0:02:18.7]} 15. Qxf6 {[%clk 0:02:40.8]} 15... Nxf6
{[%clk 0:02:19.6]} 16. cxd4 {[%clk 0:02:39.8]} 16... e5 {[%clk 0:02:16.9]} 17.
d5 {[%clk 0:02:36.5]} 17... Rfc8 {[%clk 0:02:11]} 18. Rfc1 {[%clk 0:02:34.3]}
18... Rc7 {[%clk 0:02:04.4]} 19. Rc2 {[%clk 0:02:28.5]} 19... Rac8 {[%clk
0:01:58]} 20. Rac1 {[%clk 0:02:23]} 20... Nd7 {[%clk 0:01:53.2]} 21. Nb3 {[%clk
0:02:22.3]} 21... Nc5 {[%clk 0:01:50.2]} 22. Nxc5 {[%clk 0:02:22.4]} 22... Rxc5
{[%clk 0:01:51.1]} 23. a4 {[%clk 0:02:21.7]} 23... Ra5 {[%clk 0:01:48.8]} 24.
Ra1 {[%clk 0:01:47.6]} 24... b5 {[%clk 0:01:45.5]} 25. Rb1 {[%clk 0:01:47]}
25... bxc4 {[%clk 0:01:34.6]} 26. Rb4 {[%clk 0:01:44]} 26... c3 {[%clk 0:01:31]}
27. Rb3 {[%clk 0:01:39]} 27... Rxa4 {[%clk 0:01:23.9]} 28. f3 {[%clk 0:01:36.4]}
28... Rac4 {[%clk 0:01:19.2]} 29. Kf2 {[%clk 0:01:36]} 29... R8c7 {[%clk
0:01:06.4]} 30. Ke2 {[%clk 0:01:35.3]} 30... g6 {[%clk 0:01:04.7]} 31. Kd3
{[%clk 0:01:35.1]} 31... Rd4+ {[%clk 0:00:55.7]} 32. Ke2 {[%clk 0:01:34.2]}
32... Rdc4 {[%clk 0:00:48.5]} 33. Kd3 {[%clk 0:01:34]} 33... Kf8 {[%clk
0:00:32.1]} 34. Rb8+ {[%clk 0:00:18.7]} 34... Ke7 {[%clk 0:00:31.7]} 35. Rh8
{[%clk 0:00:18.4]} 35... h5 {[%clk 0:00:27.4]} 36. Ra8 {[%clk 0:00:18.1]} 36...
Rd4+ {[%clk 0:00:25.5]} 37. Ke2 {[%clk 0:00:17.7]} 37... f5 {[%clk 0:00:25.8]}
38. Ke3 {[%clk 0:00:11.5]} 38... fxe4 {[%clk 0:00:21.7]} 39. fxe4 {[%clk
0:00:11.1]} 39... Ra4 {[%clk 0:00:22.6]} 40. Rh8 {[%clk 0:00:10.4]} 40... Kf6
{[%clk 0:00:21.9]} 41. Rf8+ {[%clk 0:00:09.1]} 41... Ke7 {[%clk 0:00:21.5]} 42.
Rg8 {[%clk 0:00:09.1]} 42... Rcc4 {[%clk 0:00:22.1]} 43. Rxg6 {[%clk 0:00:06.3]}
43... Rxe4+ {[%clk 0:00:22]} 44. Kf3 {[%clk 0:00:06.5]} 44... Rec4 {[%clk
0:00:15.7]} 45. Re6+ {[%clk 0:00:06.6]} 45... Kd7 {[%clk 0:00:16.1]} 46. Rh6
{[%clk 0:00:07.3]} 46... h4 {[%clk 0:00:15.3]} 47. Rxh4 {[%clk 0:00:06.9]} 47...
Rxh4 {[%clk 0:00:14.2]} 48. gxh4 {[%clk 0:00:07.8]} 48... Rxh4 {[%clk
0:00:14.7]} 49. Rxc3 {[%clk 0:00:08.4]} 49... Rh3+ {[%clk 0:00:15]} 50. Kg2
{[%clk 0:00:05]} 50... Rxc3 {[%clk 0:00:15.9]} 51. h4 {[%clk 0:00:05.4]} 0-1

[Event "Early-Titled-Tuesday-Blitz-May-14-2024"]
[Site "Chess.com"]
[Date "2024.05.14"]
[Round "1"]
[White "Slovineanu"]
[Black "GMSrinath"]
[Result "0-1"]
[WhiteElo "2489"]
[BlackElo "2850"]
[TimeControl "180+1"]
[EndTime "8:07:56 PDT"]
[Termination "GMSrinath won on time"]

1. d4 {[%clk 0:03:00.9]} 1... f5 {[%clk 0:02:58.4]} 2. g3 {[%clk 0:03:00.1]}
2... Nf6 {[%clk 0:02:57.5]} 3. Bg2 {[%clk 0:03:00.2]} 3... g6 {[%clk 0:02:57.6]}
4. Nd2 {[%clk 0:02:59.4]} 4... Bg7 {[%clk 0:02:58]} 5. e4 {[%clk 0:02:59.2]}
5... fxe4 {[%clk 0:02:57.2]} 6. Nxe4 {[%clk 0:02:59.4]} 6... Nxe4 {[%clk
0:02:57.5]} 7. Bxe4 {[%clk 0:02:58.9]} 7... O-O {[%clk 0:02:58.4]} 8. Ne2 {[%clk
0:02:54.1]} 8... d5 {[%clk 0:02:52.9]} 9. Bg2 {[%clk 0:02:52.9]} 9... Nc6 {[%clk
0:02:52.1]} 10. O-O {[%clk 0:02:37.8]} 10... Bg4 {[%clk 0:02:40.4]} 11. f3
{[%clk 0:02:37.4]} 11... Bf5 {[%clk 0:02:39]} 12. f4 {[%clk 0:02:36.8]} 12...
Kh8 {[%clk 0:02:32.2]} 13. c3 {[%clk 0:02:32.5]} 13... Qd7 {[%clk 0:02:28]} 14.
Be3 {[%clk 0:02:30.7]} 14... Bh3 {[%clk 0:02:27.5]} 15. Qd2 {[%clk 0:02:19.9]}
15... Rae8 {[%clk 0:02:23.9]} 16. Rae1 {[%clk 0:02:18.6]} 16... Nd8 {[%clk
0:02:19.4]} 17. Nc1 {[%clk 0:02:17.8]} 17... Bxg2 {[%clk 0:02:18.8]} 18. Qxg2
{[%clk 0:02:12.2]} 18... Qb5 {[%clk 0:02:10.3]} 19. Qe2 {[%clk 0:02:07.2]} 19...
Qa5 {[%clk 0:02:03.8]} 20. a3 {[%clk 0:01:59.4]} 20... Nf7 {[%clk 0:02:03.1]}
21. Nd3 {[%clk 0:01:51.9]} 21... Nd6 {[%clk 0:02:02.7]} 22. Nc5 {[%clk
0:01:35.8]} 22... e6 {[%clk 0:02:02]} 23. Bc1 {[%clk 0:01:28.3]} 23... Nf5
{[%clk 0:01:40.6]} 24. Nxb7 {[%clk 0:01:06.1]} 24... Qb6 {[%clk 0:01:40.1]} 25.
Nc5 {[%clk 0:01:06.2]} 25... Nxd4 {[%clk 0:01:40.4]} 26. cxd4 {[%clk 0:00:58.5]}
26... Bxd4+ {[%clk 0:01:41.3]} 27. Be3 {[%clk 0:00:56.8]} 27... Bxc5 {[%clk
0:01:40]} 28. Bxc5 {[%clk 0:00:54.8]} 28... Qxc5+ {[%clk 0:01:40.9]} 29. Qf2
{[%clk 0:00:54.1]} 29... Qb6 {[%clk 0:01:33]} 30. Re5 {[%clk 0:00:50.6]} 30...
Rb8 {[%clk 0:01:20.6]} 31. b4 {[%clk 0:00:46.6]} 31... Rfe8 {[%clk 0:00:54.3]}
32. Rfe1 {[%clk 0:00:44.3]} 32... d4 {[%clk 0:00:31.6]} 33. Qa2 {[%clk
0:00:22.3]} 33... Rbd8 {[%clk 0:00:27.5]} 34. Rxe6 {[%clk 0:00:16.1]} 34... d3+
{[%clk 0:00:20.1]} 35. Kf1 {[%clk 0:00:15.6]} 35... Rxe6 {[%clk 0:00:15.9]} 36.
Rxe6 {[%clk 0:00:14.9]} 36... d2 {[%clk 0:00:09.2]} 37. Qa1+ {[%clk 0:00:14.8]}
37... Qd4 {[%clk 0:00:06.5]} 38. Re8+ {[%clk 0:00:04.3]} 38... Kg7 {[%clk
0:00:06.3]} 39. Re7+ {[%clk 0:00:04.7]} 39... Kf8 {[%clk 0:00:05.7]} 0-1

[Event "Early-Titled-Tuesday-Blitz-May-14-2024"]
[Site "Chess.com"]
[Date "2024.05.14"]
[Round "1"]
[White "DominguezOnYoutube"]
[Black "Journey_to_GrandMaster_YT"]
[Result "0-1"]
[WhiteElo "3002"]
[BlackElo "2556"]
[TimeControl "180+1"]
[EndTime "8:07:58 PDT"]
[Termination "Journey_to_GrandMaster_YT won on time"]

1. e4 {[%clk 0:03:00.9]} 1... d6 {[%clk 0:02:59]} 2. d4 {[%clk 0:03:00.4]} 2...
Nf6 {[%clk 0:02:59.5]} 3. Nc3 {[%clk 0:03:00.4]} 3... e5 {[%clk 0:03:00.1]} 4.
Nf3 {[%clk 0:03:00]} 4... Nbd7 {[%clk 0:03:00.1]} 5. Bc4 {[%clk 0:02:59.2]} 5...
Be7 {[%clk 0:03:00.7]} 6. O-O {[%clk 0:02:58.3]} 6... O-O {[%clk 0:03:01.1]} 7.
a4 {[%clk 0:02:58]} 7... c6 {[%clk 0:02:58.7]} 8. Re1 {[%clk 0:02:57.2]} 8... a5
{[%clk 0:02:58.3]} 9. h3 {[%clk 0:02:56.5]} 9... Nb6 {[%clk 0:02:58.6]} 10. Ba2
{[%clk 0:02:51.1]} 10... Nfd7 {[%clk 0:02:58.3]} 11. Be3 {[%clk 0:02:49.9]}
11... exd4 {[%clk 0:02:58.7]} 12. Nxd4 {[%clk 0:02:49.1]} 12... Nc5 {[%clk
0:02:59.1]} 13. Qd2 {[%clk 0:02:36.4]} 13... Nbxa4 {[%clk 0:02:48.3]} 14. Nxa4
{[%clk 0:02:35.9]} 14... Nxa4 {[%clk 0:02:49]} 15. Bxf7+ {[%clk 0:02:35.8]}
15... Rxf7 {[%clk 0:02:49.9]} 16. Rxa4 {[%clk 0:02:35.7]} 16... Bd7 {[%clk
0:02:44.8]} 17. Raa1 {[%clk 0:02:34.3]} 17... b5 {[%clk 0:02:15.7]} 18. Rad1
{[%clk 0:02:24.7]} 18... Qc7 {[%clk 0:02:14.3]} 19. Ne2 {[%clk 0:02:05.2]} 19...
Rd8 {[%clk 0:02:05.3]} 20. Bf4 {[%clk 0:02:01.6]} 20... Be6 {[%clk 0:02:00.8]}
21. Nd4 {[%clk 0:02:00.8]} 21... Bc8 {[%clk 0:01:49.1]} 22. Bg3 {[%clk
0:02:00.8]} 22... Bf6 {[%clk 0:01:44.7]} 23. c3 {[%clk 0:01:56.5]} 23... Qb6
{[%clk 0:01:36.5]} 24. Nf3 {[%clk 0:01:51.8]} 24... Be7 {[%clk 0:01:32.7]} 25.
Nd4 {[%clk 0:01:45.3]} 25... Rff8 {[%clk 0:01:24.2]} 26. Kh2 {[%clk 0:01:41]}
26... Kh8 {[%clk 0:01:23.9]} 27. f4 {[%clk 0:01:36.1]} 27... c5 {[%clk
0:01:20.3]} 28. Nf3 {[%clk 0:01:35.8]} 28... Be6 {[%clk 0:01:20.7]} 29. f5
{[%clk 0:01:28.1]} 29... Bb3 {[%clk 0:01:20.6]} 30. Ra1 {[%clk 0:01:28.7]} 30...
a4 {[%clk 0:01:20.7]} 31. Bh4 {[%clk 0:01:22.5]} 31... Bxh4 {[%clk 0:01:18.7]}
32. Nxh4 {[%clk 0:01:23.4]} 32... d5 {[%clk 0:01:01.3]} 33. e5 {[%clk
0:01:22.4]} 33... d4 {[%clk 0:01:01.8]} 34. e6 {[%clk 0:01:17.8]} 34... Qd6+
{[%clk 0:01:00.6]} 35. Kh1 {[%clk 0:01:16.9]} 35... dxc3 {[%clk 0:01:00.4]} 36.
Qxc3 {[%clk 0:01:10.8]} 36... b4 {[%clk 0:00:57.7]} 37. Qe3 {[%clk 0:01:06.7]}
37... Rde8 {[%clk 0:00:51.7]} 38. Qg5 {[%clk 0:01:03.5]} 38... Qd4 {[%clk
0:00:48.4]} 39. Re2 {[%clk 0:00:56.2]} 39... Qf6 {[%clk 0:00:45.7]} 40. Qh5
{[%clk 0:00:55.7]} 40... Kg8 {[%clk 0:00:44.4]} 41. Rd2 {[%clk 0:00:54.3]} 41...
a3 {[%clk 0:00:35.6]} 42. Qg4 {[%clk 0:00:46.1]} 42... c4 {[%clk 0:00:30.8]} 43.
Qe4 {[%clk 0:00:35.6]} 43... axb2 {[%clk 0:00:30.1]} 44. Rg1 {[%clk 0:00:32.6]}
44... c3 {[%clk 0:00:29.9]} 45. Rf2 {[%clk 0:00:31.2]} 45... Bxe6 {[%clk
0:00:21.8]} 46. Qxb4 {[%clk 0:00:27.1]} 46... Ba2 {[%clk 0:00:20.9]} 47. Nf3
{[%clk 0:00:20.5]} 47... Rb8 {[%clk 0:00:19.9]} 48. Qa3 {[%clk 0:00:19.1]} 48...
b1=Q {[%clk 0:00:19.9]} 49. Rxb1 {[%clk 0:00:18.9]} 49... Bxb1 {[%clk
0:00:18.8]} 50. Kh2 {[%clk 0:00:18.8]} 50... c2 {[%clk 0:00:18.3]} 51. Rf1
{[%clk 0:00:18.9]} 51... Qxf5 {[%clk 0:00:18.2]} 52. Kh1 {[%clk 0:00:13.4]}
52... Kh8 {[%clk 0:00:17]} 53. Rg1 {[%clk 0:00:11.7]} 53... Qf4 {[%clk
0:00:16.8]} 54. Qc3 {[%clk 0:00:01.7]} 54... Rfc8 {[%clk 0:00:16.6]} 55. Qa3
{[%clk 0:00:00.6]} 55... Qb4 {[%clk 0:00:15.6]} 56. Qc1 {[%clk 0:00:00.1]} 56...
Qb2 {[%clk 0:00:15.4]} 0-1

[Event "Early-Titled-Tuesday-Blitz-May-14-2024"]
[Site "Chess.com"]
[Date "2024.05.14"]
[Round "1"]
[White "RobertoJBM"]
[Black "UF_10"]
[Result "1-0"]
[WhiteElo "2853"]
[BlackElo "2492"]
[TimeControl "180+1"]
[EndTime "8:07:59 PDT"]
[Termination "RobertoJBM won by resignation"]

1. d4 {[%clk 0:02:52.3]} 1... Nf6 {[%clk 0:02:55.6]} 2. Nf3 {[%clk 0:02:51.5]}
2... d5 {[%clk 0:02:55.1]} 3. e3 {[%clk 0:02:52.4]} 3... c6 {[%clk 0:02:50.5]}
4. Be2 {[%clk 0:02:49.8]} 4... Bf5 {[%clk 0:02:49.7]} 5. O-O {[%clk 0:02:50.7]}
5... e6 {[%clk 0:02:50]} 6. Bd3 {[%clk 0:02:50.8]} 6... Bg6 {[%clk 0:02:45.9]}
7. b3 {[%clk 0:02:49.9]} 7... Nbd7 {[%clk 0:02:46.4]} 8. Ba3 {[%clk 0:02:45.3]}
8... Bxa3 {[%clk 0:02:43.9]} 9. Nxa3 {[%clk 0:02:46.2]} 9... O-O {[%clk
0:02:44.2]} 10. c4 {[%clk 0:02:42.2]} 10... Bh5 {[%clk 0:02:38]} 11. Be2 {[%clk
0:02:41.9]} 11... Qe7 {[%clk 0:02:38.1]} 12. Qc1 {[%clk 0:02:41.7]} 12... h6
{[%clk 0:02:28.8]} 13. Re1 {[%clk 0:02:41.5]} 13... Rac8 {[%clk 0:02:28.5]} 14.
Qb2 {[%clk 0:02:41.2]} 14... Rfe8 {[%clk 0:02:27]} 15. Rac1 {[%clk 0:02:36.6]}
15... Ne4 {[%clk 0:02:26.8]} 16. Nb1 {[%clk 0:02:20.9]} 16... a5 {[%clk
0:02:08.8]} 17. Nc3 {[%clk 0:02:16.7]} 17... Nef6 {[%clk 0:02:06.8]} 18. h3
{[%clk 0:01:23]} 18... Qd6 {[%clk 0:01:59.6]} 19. Red1 {[%clk 0:01:17.3]} 19...
Qe7 {[%clk 0:01:56.8]} 20. Na4 {[%clk 0:01:15.8]} 20... Ne4 {[%clk 0:01:53.2]}
21. Nc3 {[%clk 0:01:15.4]} 21... Nef6 {[%clk 0:01:53.4]} 22. Qd2 {[%clk
0:01:14.9]} 22... Qb4 {[%clk 0:01:39.4]} 23. Na4 {[%clk 0:01:12.1]} 23... Ne4
{[%clk 0:01:39.7]} 24. Qe1 {[%clk 0:01:09]} 24... Ra8 {[%clk 0:01:33]} 25. cxd5
{[%clk 0:01:06.1]} 25... exd5 {[%clk 0:01:32.5]} 26. Qxb4 {[%clk 0:01:02.1]}
26... axb4 {[%clk 0:01:33.4]} 27. Rc2 {[%clk 0:00:59.5]} 27... Ra5 {[%clk
0:01:29.9]} 28. g4 {[%clk 0:00:31.8]} 28... Bg6 {[%clk 0:01:28.5]} 29. Bd3
{[%clk 0:00:32]} 29... b5 {[%clk 0:01:21.1]} 30. Nc5 {[%clk 0:00:28.6]} 30...
Ndxc5 {[%clk 0:01:21.3]} 31. dxc5 {[%clk 0:00:29.2]} 31... Rea8 {[%clk
0:01:22.1]} 32. Ne5 {[%clk 0:00:24.9]} 32... R8a6 {[%clk 0:01:08.1]} 33. Nxg6
{[%clk 0:00:21.2]} 33... fxg6 {[%clk 0:01:09]} 34. Bxe4 {[%clk 0:00:21]} 34...
dxe4 {[%clk 0:01:09.9]} 35. Rdd2 {[%clk 0:00:20.9]} 35... Kf7 {[%clk 0:01:04]}
36. Kg2 {[%clk 0:00:20.6]} 36... Ke7 {[%clk 0:01:03.1]} 37. Kg3 {[%clk
0:00:20.8]} 37... g5 {[%clk 0:01:01.3]} 38. h4 {[%clk 0:00:18.8]} 38... Ra7
{[%clk 0:01:00.3]} 39. hxg5 {[%clk 0:00:18.4]} 39... hxg5 {[%clk 0:01:01.2]} 40.
Kg2 {[%clk 0:00:18.1]} 40... Rd7 {[%clk 0:00:57.6]} 41. Rxd7+ {[%clk 0:00:17.6]}
41... Kxd7 {[%clk 0:00:58.5]} 42. Rd2+ {[%clk 0:00:18.5]} 42... Kc7 {[%clk
0:00:53.1]} 43. f3 {[%clk 0:00:18.8]} 43... exf3+ {[%clk 0:00:51.3]} 44. Kxf3
{[%clk 0:00:19.7]} 44... Ra8 {[%clk 0:00:50.9]} 45. e4 {[%clk 0:00:19.7]} 45...
Rf8+ {[%clk 0:00:49.7]} 46. Ke3 {[%clk 0:00:20.1]} 46... Rf4 {[%clk 0:00:50]}
47. e5 {[%clk 0:00:16.8]} 47... Rxg4 {[%clk 0:00:33.6]} 48. e6 {[%clk
0:00:17.2]} 48... Rg3+ {[%clk 0:00:34.2]} 49. Ke4 {[%clk 0:00:17.2]} 49... Rg4+
{[%clk 0:00:34]} 50. Kf5 {[%clk 0:00:15.9]} 50... Rf4+ {[%clk 0:00:31.5]} 51.
Kxg5 {[%clk 0:00:16.2]} 51... Rf6 {[%clk 0:00:30.9]} 52. Rd7+ {[%clk 0:00:13.4]}
52... Kc8 {[%clk 0:00:30.3]} 53. Rd6 {[%clk 0:00:13.8]} 53... Rf8 {[%clk
0:00:26.3]} 54. Kg6 {[%clk 0:00:13.2]} 54... Kc7 {[%clk 0:00:23.3]} 55. Kxg7
{[%clk 0:00:13.2]} 55... Re8 {[%clk 0:00:23.5]} 56. Kf7 {[%clk 0:00:13.5]} 1-0